[Event "Ostravsky Konik-A 2019"]
[Site "Ostrava"]
[Date "2019.05.03"]
[Round "7.2"]
[White "Mica, Marek"]
[Black "Malicka, Maria"]
[Result "1/2-1/2"]
[ECO "D37"]
[WhiteElo "2139"]
[BlackElo "2118"]
[Annotator "NA"]
[PlyCount "165"]
[EventDate "2019.04.27"]
[EventType "swiss"]
[EventCountry "CZE"]
[SourceTitle "playchess.com"]
[Source "ChessBase"]
[SourceQuality "1"]
[TimeControl "40/5400+30:1800+30"]

1. d4 {[%emt 0:00:00]} Nf6 {[%emt 0:00:00]} 2. c4 {[%emt 0:00:00]} e6 {[%emt 0:00:00]} 3. Nf3 {[%emt 0:00:00]} d5 {[%emt 0:00:00]} 4. Nc3 {[%emt 0:00:00]} a6 {[%emt 0:00:00]} 5. cxd5 {[%emt 0:02:53]} exd5 {[%emt 0:00:00]} 6. Bg5 {[%emt 0:00:06]} Be6 {[%emt 0:00:02]} 7. e3 {[%emt 0:00:31]} Nbd7 {[%emt 0:00:08]} 8. Be2 {[%emt 0:01:03]} Bd6 {[%emt 0:01:14]} 9. O-O {[%emt 0:01:00]} c6 {[%emt 0:04:58]} 10. Qc2 {[%emt 0:00:55]} O-O {[%emt 0:02:15]} 11. Rab1 {[%emt 0:01:09]} Qc7 {[%emt 0:04:19]} 12. Bh4 {[%emt 0:01:44]} Bg4 {[%emt 0:05:14]} 13. Bg3 {[%emt 0:00:33]} Bh5 {[%emt 0:00:36]} 14. Rfc1 {[%emt 0:03:22]} Bg6 {[%emt 0:00:44]} 15. Bd3 {[%emt 0:00:20]} Bxg3 {[%emt 0:09:51]} 16. hxg3 {[%emt 0:00:09]} Qd6 {[%emt 0:03:25]} 17. b4 {[%emt 0:01:20]} Rfe8 {[%emt 0:10:44]} 18. Bxg6 {[%emt 0:01:20]} hxg6 {[%emt 0:00:09]} 19. Na4 {[%emt 0:00:36]} Ne4 {[%emt 0:07:12]} 20. Nc5 {[%emt 0:01:36]} Qc7 {[%emt 0:01:18]} 21. Nxe4 {[%emt 0:00:13]} Rxe4 {[%emt 0:02:55]} 22. a4 {[%emt 0:00:38]} Ree8 {[%emt 0:04:24]} 23. b5 {[%emt 0:01:28]} axb5 {[%emt 0:00:08]} 24. axb5 {[%emt 0:00:05]} Rec8 {[%emt 0:00:31]} 25. bxc6 {[%emt 0:00:41]} bxc6 {[%emt 0:00:19]} 26. Qd2 {[%emt 0:17:26]} Rcb8 {[%emt 0:05:24]} 27. Rxb8+ {[%emt 0:01:12]} Rxb8 {[%emt 0:00:15]} 28. Ne1 {[%emt 0:00:12]} Nb6 {[%emt 0:03:35]} 29. Qa5 {[%emt 0:02:03]} Ra8 {[%emt 0:02:14]} 30. Qc5 {[%emt 0:00:45]} Nc4 {[%emt 0:00:34]} 31. Nd3 {[%emt 0:00:56]} Ra5 {[%emt 0:02:02]} 32. Qb4 {[%emt 0:00:07]} Rb5 {[%emt 0:01:08]} 33. Qc3 {[%emt 0:00:16]} Qb6 {[%emt 0:02:08]} 34. Nc5 {[%emt 0:01:00]} Rb1 {[%emt 0:05:50]} 35. Qc2 {[%emt 0:11:52]} Rxc1+ {[%emt 0:07:45]} 36. Qxc1 {[%emt 0:02:06]} Qb2 {[%emt 0:04:14]} 37. Qxb2 {[%emt 0:00:48]} Nxb2 {[%emt 0:00:02]} 38. Nd7 {[%emt 0:00:19]} Nc4 {[%emt 0:01:24]} 39. Kf1 {[%emt 0:00:05]} f6 {[%emt 0:00:23]} 40. Ke2 {[%emt 0:00:19]} Kf7 {[%emt 0:00:35]} 41. Nb8 {[%emt 0:30:08]} Na5 {[%emt 0:31:07]} 42. Kd3 {[%emt 0:00:38]} Ke6 {[%emt 0:01:24]} 43. Na6 {[%emt 0:00:26]} Nc4 {[%emt 0:03:44]} 44. Nc5+ {[%emt 0:02:46]} Kd6 {[%emt 0:02:17]} 45. Ne4+ {[%emt 0:00:50]} Ke6 {[%emt 0:00:00]} 46. Nc3 {[%emt 0:00:00]} Kd6 {[%emt 0:00:00]} 47. Ne2 {[%emt 0:00:00]} g5 {[%emt 0:00:00]} 48. g4 {[%emt 0:00:00]} c5 {[%emt 0:00:00]} 49. Ng3 {[%emt 0:00:00]} cxd4 {[%emt 0:00:00]} 50. Kxd4 {[%emt 0:00:00]} g6 {[%emt 0:00:00]} 51. e4 {[%emt 0:00:00]} Nb6 {[%emt 0:00:00]} 52. exd5 {[%emt 0:00:00]} Nxd5 {[%emt 0:00:00]} 53. Ne4+ {[%emt 0:00:00]} Ke6 {[%emt 0:00:00]} 54. Nc5+ {[%emt 0:00:00]} Kd6 {[%emt 0:00:00]} 55. Nb7+ {[%emt 0:00:00]} Ke6 {[%emt 0:00:18]} 56. Nd8+ {[%emt 0:00:00]} Kd6 {[%emt 0:00:04]} 57. Nf7+ {[%emt 0:00:00]} Ke6 {[%emt 0:00:15]} 58. Nd8+ {[%emt 0:00:00]} Kd6 {[%emt 0:00:04]} 59. Nb7+ {[%emt 0:00:00]} Ke6 {[%emt 0:00:07]} 60. Nc5+ {[%emt 0:00:00]} Kd6 {[%emt 0:00:04]} 61. Ne4+ {[%emt 0:00:00]} Ke6 {[%emt 0:00:05]} 62. g3 {[%emt 0:00:00]} Ne7 {[%emt 0:00:49]} 63. Nc5+ {[%emt 0:00:00]} Kd6 {[%emt 0:00:15]} 64. Ne4+ {[%emt 0:00:00]} Ke6 {[%emt 0:00:03]} 65. f3 {[%emt 0:00:00]} Nc6+ {[%emt 0:01:03]} 66. Ke3 {[%emt 0:00:00]} Ne5 {[%emt 0:00:37]} 67. Nc5+ {[%emt 0:00:00]} Kd5 {[%emt 0:00:14]} 68. Ne4 {[%emt 0:00:00]} Ke6 {[%emt 0:00:05]} 69. Kf2 {[%emt 0:00:00]} Nd3+ {[%emt 0:00:50]} 70. Ke2 {[%emt 0:00:00]} Ne5 {[%emt 0:00:14]} 71. Nc5+ {[%emt 0:00:00]} Kd5 {[%emt 0:00:36]} 72. Ne4 {[%emt 0:00:00]} Ke6 {[%emt 0:00:16]} 73. Kf2 {[%emt 0:00:00]} Nd3+ {[%emt 0:00:18]} 74. Kf1 {[%emt 0:00:00]} Ne5 {[%emt 0:00:17]} 75. Ke2 {[%emt 0:00:00]} Nf7 {[%emt 0:01:45]} 76. f4 {[%emt 0:00:00]} gxf4 {[%emt 0:00:20]} 77. gxf4 {[%emt 0:00:00]} f5 {[%emt 0:00:19]} 78. gxf5+ {[%emt 0:00:00]} Kxf5 {[%emt 0:00:11]} 79. Kf3 {[%emt 0:00:00]} Ne5+ {[%emt 0:00:43]} 80. fxe5 {[%emt 0:00:00]} Kxe5 {[%emt 0:00:04]} 81. Kg4 {[%emt 0:00:00]} Kxe4 {[%emt 0:00:07]} 82. Kg5 {[%emt 0:00:00]} Ke5 {[%emt 0:00:06]} 83. Kxg6 {[%emt 0:00:00]} 1/2-1/2

[Event "Ostravsky Konik-A 2019"]
[Site "Ostrava"]
[Date "2019.05.03"]
[Round "7.3"]
[White "Krajina, Ales"]
[Black "Stalmach, Richard"]
[Result "1/2-1/2"]
[ECO "B20"]
[WhiteElo "2119"]
[BlackElo "1991"]
[Annotator "NA"]
[PlyCount "88"]
[EventDate "2019.04.27"]
[EventType "swiss"]
[EventCountry "CZE"]
[SourceTitle "playchess.com"]
[Source "ChessBase"]
[SourceQuality "1"]
[TimeControl "40/5400+30:1800+30"]

1. e4 {[%emt 0:00:00]} c5 {[%emt 0:00:00]} 2. a3 {[%emt 0:00:00]} g6 {[%emt 0:00:41]} 3. b4 {[%emt 0:02:53]} Bg7 {[%emt 0:00:05]} 4. Nc3 {[%emt 0:00:04]} cxb4 {[%emt 0:00:14]} 5. axb4 {[%emt 0:00:02]} d6 {[%emt 0:00:56]} 6. b5 {[%emt 0:01:28]} f5 {[%emt 0:03:37]} 7. d4 {[%emt 0:03:48]} Nf6 {[%emt 0:04:12]} 8. exf5 {[%emt 0:04:45]} Bxf5 {[%emt 0:00:49]} 9. Nf3 {[%emt 0:00:21]} O-O {[%emt 0:01:22]} 10. Bc4+ {[%emt 0:06:39]} Kh8 {[%emt 0:03:19]} 11. Bb2 {[%emt 0:03:48]} d5 {[%emt 0:14:39]} 12. Bb3 {[%emt 0:10:16]} e6 {[%emt 0:01:59]} 13. h3 {[%emt 0:00:16]} Ne4 {[%emt 0:01:55]} 14. O-O {[%emt 0:11:09]} Ng5 {[%emt 0:09:26]} 15. Nxg5 {[%emt 0:06:41]} Qxg5 {[%emt 0:00:05]} 16. Bc1 {[%emt 0:02:18]} Qh4 {[%emt 0:02:32]} 17. Ne2 {[%emt 0:04:41]} Nd7 {[%emt 0:03:21]} 18. Bf4 {[%emt 0:02:41]} g5 {[%emt 0:01:28]} 19. Bg3 {[%emt 0:00:28]} Qh6 {[%emt 0:03:28]} 20. Bd6 {[%emt 0:03:20]} Rg8 {[%emt 0:12:03]} 21. Ng3 {[%emt 0:01:08]} Nf6 {[%emt 0:01:37]} 22. Qd2 {[%emt 0:10:24]} Qg6 {[%emt 0:08:38]} 23. Qe3 {[%emt 0:04:53]} Ne4 {[%emt 0:05:04]} 24. Nxe4 {[%emt 0:00:16]} Bxe4 {[%emt 0:00:07]} 25. c3 {[%emt 0:00:15]} Rgd8 {[%emt 0:05:30]} 26. Qg3 {[%emt 0:01:01]} Bd3 {[%emt 0:00:59]} 27. Rfe1 {[%emt 0:00:23]} Bxb5 {[%emt 0:01:11]} 28. Be5 {[%emt 0:01:02]} Re8 {[%emt 0:01:04]} 29. Bxg7+ {[%emt 0:01:39]} Qxg7 {[%emt 0:00:08]} 30. Re5 {[%emt 0:00:12]} h6 {[%emt 0:00:55]} 31. Bc2 {[%emt 0:03:59]} Qf6 {[%emt 0:01:06]} 32. Qg4 {[%emt 0:01:50]} Bd7 {[%emt 0:01:26]} 33. Qe2 {[%emt 0:00:48]} Rg8 {[%emt 0:03:09]} 34. g3 {[%emt 0:03:49]} a5 {[%emt 0:01:27]} 35. Ba4 {[%emt 0:02:29]} Bxa4 {[%emt 0:00:52]} 36. Rxa4 {[%emt 0:00:03]} Ra6 {[%emt 0:00:19]} 37. Qb5 {[%emt 0:00:16]} Rf8 {[%emt 0:00:12]} 38. Re2 {[%emt 0:01:01]} Qf3 {[%emt 0:00:36]} 39. Raa2 {[%emt 0:00:46]} Rc6 {[%emt 0:01:24]} 40. Re3 {[%emt 0:01:43]} Qf7 {[%emt 0:06:45]} 41. Rae2 {[%emt 0:35:12]} Ra8 {[%emt 0:30:58]} 42. c4 {[%emt 0:00:00]} dxc4 {[%emt 0:00:00]} 43. d5 {[%emt 0:00:00]} exd5 {[%emt 0:00:00]} 44. Re7 {[%emt 0:00:00]} Qg6 {[%emt 0:00:00]} 1/2-1/2

[Event "Ostravsky Konik-A 2019"]
[Site "Ostrava"]
[Date "2019.05.03"]
[Round "7.4"]
[White "Orzechowski, Jacek"]
[Black "Gnojek, Petr"]
[Result "1/2-1/2"]
[ECO "A41"]
[WhiteElo "2139"]
[BlackElo "2016"]
[Annotator "NA"]
[PlyCount "220"]
[EventDate "2019.04.27"]
[EventType "swiss"]
[EventCountry "CZE"]
[SourceTitle "playchess.com"]
[Source "ChessBase"]
[SourceQuality "1"]
[TimeControl "40/5400+30:1800+30"]

1. d4 {[%emt 0:00:00]} d6 {[%emt 0:00:00]} 2. g3 {[%emt 0:01:25]} g6 {[%emt 0:00:34]} 3. Bg2 {[%emt 0:00:48]} Bg7 {[%emt 0:00:00]} 4. c3 {[%emt 0:00:53]} c6 {[%emt 0:01:40]} 5. e4 {[%emt 0:03:08]} Nf6 {[%emt 0:00:14]} 6. Nd2 {[%emt 0:00:25]} O-O {[%emt 0:00:50]} 7. Ngf3 {[%emt 0:00:39]} Nbd7 {[%emt 0:02:46]} 8. O-O {[%emt 0:02:31]} b5 $146 {[%emt 0:01:06] A49: 1 d4 Nf6 2 Nf3 g6 3 g3: Anti-King's Indian systems} ({Predecessor:} 8... e5 9. Re1 Qc7 10. b3 Re8 11. Ba3 b5 12. Rc1 a5 13. Bb2 c5 14. Bf1 Ba6 15. dxe5 dxe5 16. c4 b4 17. Bd3 Rad8 {½-½ (32) Shyam,N (2446)-Konguvel,P (2302) Chennai 2019}) 9. a4 {[%emt 0:09:46]} Bb7 {[%emt 0:01:58]} 10. e5 {[%emt 0:08:22]} dxe5 {[%emt 0:00:50]} 11. dxe5 {[%emt 0:00:27]} Nd5 {[%emt 0:00:12]} 12. e6 {[%emt 0:01:50]} Nc5 {[%emt 0:02:03]} 13. exf7+ {[%emt 0:03:05]} Rxf7 {[%emt 0:00:04]} 14. axb5 {[%emt 0:18:59]} cxb5 {[%emt 0:00:11]} 15. Ng5 {[%emt 0:02:44]} Rf5 {[%emt 0:01:16]} 16. Nde4 {[%emt 0:09:38]} Qb6 {[%emt 0:05:32]} 17. Nxc5 {[%emt 0:01:11]} Qxc5 {[%emt 0:00:06]} 18. Ne6 {[%emt 0:02:36]} Qb6 {[%emt 0:01:39]} 19. Nxg7 {[%emt 0:01:11]} Kxg7 {[%emt 0:00:08]} 20. Qd4+ {[%emt 0:09:03]} Qxd4 {[%emt 0:03:35]} 21. cxd4 {[%emt 0:00:04]} a6 {[%emt 0:09:07]} 22. Bd2 {[%emt 0:06:17]} Rf6 {[%emt 0:09:49]} 23. Rfe1 {[%emt 0:02:26]} Re8 {[%emt 0:06:21]} 24. Bg5 {[%emt 0:01:06]} Rd6 {[%emt 0:00:04]} 25. Bxe7 {[%emt 0:09:13]} Rxe7 {[%emt 0:01:45]} 26. Rxe7+ {[%emt 0:00:08]} Nxe7 {[%emt 0:00:03]} 27. Bxb7 {[%emt 0:00:08]} Rxd4 {[%emt 0:00:03]} 28. Bxa6 {[%emt 0:01:25]} Rb4 {[%emt 0:00:50]} 29. Ra5 {[%emt 0:00:57]} Rxb2 {[%emt 0:00:15]} 30. Bxb5 {[%emt 0:00:28]} Nf5 {[%emt 0:02:53]} 31. Ra7+ {[%emt 0:02:28]} Kf6 {[%emt 0:01:45]} 32. Bc4 {[%emt 0:00:47]} Nd6 {[%emt 0:01:53]} 33. Bd5 {[%emt 0:00:23]} Rd2 {[%emt 0:00:40]} 34. Bf3 {[%emt 0:00:25]} Nf7 {[%emt 0:00:46]} 35. Ra6+ {[%emt 0:00:29]} Kf5 {[%emt 0:01:03]} 36. Kg2 {[%emt 0:01:26]} Ne5 {[%emt 0:00:50]} 37. Ra5 {[%emt 0:00:20]} Kf6 {[%emt 0:00:34]} 38. Ra6+ {[%emt 0:01:06]} Kg7 {[%emt 0:01:09]} 39. Ra7+ {[%emt 0:00:36]} Kh6 {[%emt 0:00:30]} 40. Be4 {[%emt 0:00:28]} Re2 {[%emt 0:00:50]} 41. Ra4 {[%emt 0:07:44]} Rb2 {[%emt 0:02:34]} 42. h3 {[%emt 0:01:24]} Nd7 {[%emt 0:01:14]} 43. Rc4 {[%emt 0:02:23]} Rd2 {[%emt 0:01:09]} 44. Rc7 {[%emt 0:06:15]} Nf6 {[%emt 0:04:12]} 45. Bf3 {[%emt 0:00:54]} g5 {[%emt 0:04:20]} 46. Re7 {[%emt 0:04:33]} Kg6 {[%emt 0:02:00]} 47. Be4+ {[%emt 0:00:44]} Nxe4 {[%emt 0:00:16]} 48. Rxe4 {[%emt 0:00:03]} Ra2 {[%emt 0:01:31]} 49. Re6+ {[%emt 0:02:36]} Kg7 {[%emt 0:00:11]} 50. Kf3 {[%emt 0:00:36]} Ra4 {[%emt 0:00:29]} 51. Re4 {[%emt 0:00:38]} Ra2 {[%emt 0:00:05]} 52. h4 {[%emt 0:00:51]} h6 {[%emt 0:00:25]} 53. h5 {[%emt 0:01:36]} Kf6 {[%emt 0:01:53]} 54. Rc4 {[%emt 0:00:27]} Ra6 {[%emt 0:01:52]} 55. Kg4 {[%emt 0:00:49]} Rb6 {[%emt 0:01:03]} 56. Rc7 {[%emt 0:01:00]} Rb4+ {[%emt 0:03:13]} 57. Kh3 {[%emt 0:01:26]} Rb6 {[%emt 0:00:28]} 58. Rh7 {[%emt 0:00:41]} Kf5 {[%emt 0:00:08]} 59. Rf7+ {[%emt 0:00:55]} Ke6 {[%emt 0:00:18]} 60. Rg7 {[%emt 0:02:50]} Kf5 {[%emt 0:00:06]} 61. f3 {[%emt 0:00:28]} Ra6 {[%emt 0:01:14]} 62. Rg8 {[%emt 0:00:55]} Rb6 {[%emt 0:03:00]} 63. Rf8+ {[%emt 0:01:04]} Ke6 {[%emt 0:00:23]} 64. Kg4 {[%emt 0:00:40]} Rb4+ {[%emt 0:00:51]} 65. Kh3 {[%emt 0:00:43]} Rb6 $1 {[%emt 0:00:05]} 66. Kg4 {[%emt 0:00:42]} Rb4+ {[%emt 0:00:04]} 67. f4 {[%emt 0:00:06]} gxf4 {[%emt 0:00:07]} 68. gxf4 {[%emt 0:00:51]} Rb1 {[%emt 0:00:13]} 69. Rh8 {[%emt 0:00:24]} Rg1+ {[%emt 0:00:06]} 70. Kf3 {[%emt 0:00:18]} Rf1+ {[%emt 0:00:09]} 71. Kg3 {[%emt 0:00:49]} Kf5 {[%emt 0:00:06]} 72. Rf8+ {[%emt 0:00:36]} Ke6 {[%emt 0:00:13]} 73. Re8+ {[%emt 0:00:30]} Kf7 {[%emt 0:00:21]} 74. Ra8 {[%emt 0:00:22]} Rg1+ {[%emt 0:00:36]} 75. Kf3 {[%emt 0:00:11]} Rb1 {[%emt 0:00:56]} 76. Ra6 {[%emt 0:00:20]} Rb3+ {[%emt 0:00:49]} 77. Kg4 {[%emt 0:00:29]} Kg7 {[%emt 0:00:07]} 78. Rg6+ {[%emt 0:00:16]} Kh7 {[%emt 0:00:17]} 79. Re6 {[%emt 0:00:09]} Rb5 {[%emt 0:01:39]} 80. Re5 {[%emt 0:01:36]} Rb6 {[%emt 0:01:29]} 81. Re7+ {[%emt 0:00:35]} Kg8 {[%emt 0:00:04] [#]} 82. Kf5 $1 {[%emt 0:00:15]} Rb4 {[%emt 0:00:56]} 83. Re4 {[%emt 0:00:43]} Rb7 {[%emt 0:00:30]} 84. Kf6 {[%emt 0:00:22]} Rf7+ {[%emt 0:01:04]} 85. Kg6 {[%emt 0:00:18]} (85. Ke6 $16) 85... Rg7+ {[%emt 0:00:04]} 86. Kxh6 {[%emt 0:00:32]} Rg4 $1 {[%emt 0:00:04]} 87. Ra4 {[%emt 0:00:47]} Kf7 {[%emt 0:00:53]} 88. Ra7+ {[%emt 0:00:26]} Kf6 $14 {[%emt 0:02:01]} 89. Ra8 {[%emt 0:00:18]} Kf7 {[%emt 0:00:07]} 90. f5 {[%emt 0:00:29]} Rg1 {[%emt 0:00:33]} 91. Ra6 {[%emt 0:00:37]} Rf1 {[%emt 0:01:52]} 92. Ra7+ {[%emt 0:00:36]} Kf6 {[%emt 0:00:16]} 93. Ra5 {[%emt 0:00:32]} Rh1 {[%emt 0:00:25]} 94. Rb5 {[%emt 0:00:30]} Rh2 {[%emt 0:00:10]} 95. Rc5 {[%emt 0:00:30]} Rh1 {[%emt 0:00:05]} 96. Ra5 {[%emt 0:00:04]} Rh2 {[%emt 0:00:04]} 97. Rc5 {[%emt 0:00:05]} Rh1 {[%emt 0:00:05]} 98. Rc8 {[%emt 0:00:57]} Kxf5 {[%emt 0:00:21]} 99. Rc5+ {[%emt 0:00:38]} Kf6 {[%emt 0:00:05]} 100. Kh7 {[%emt 0:00:13]} Rg1 {[%emt 0:00:17]} 101. h6 {[%emt 0:01:02]} Kf7 {[%emt 0:00:09]} 102. Rf5+ {[%emt 0:00:08]} Ke7 {[%emt 0:00:07]} 103. Kh8 {[%emt 0:00:34]} Rg6 {[%emt 0:00:19]} 104. Kh7 {[%emt 0:00:32]} Rg1 {[%emt 0:00:04]} 105. Ra5 {[%emt 0:00:26]} Kf7 {[%emt 0:00:17]} 106. Ra7+ {[%emt 0:00:20]} Kf6 {[%emt 0:00:09]} 107. Kh8 {[%emt 0:00:55]} Rg6 {[%emt 0:00:54]} 108. Ra6+ {[%emt 0:00:33]} Kg5 {[%emt 0:00:05]} 109. Rxg6+ {[%emt 0:00:09]} Kxg6 {[%emt 0:00:04]} 110. Kg8 {[%emt 0:00:06]} Kxh6 1/2-1/2

[Event "Ostravsky Konik-A 2019"]
[Site "Ostrava"]
[Date "2019.05.03"]
[Round "7.6"]
[White "Mrva, Marek"]
[Black "Skola, Miroslav"]
[Result "1-0"]
[ECO "C13"]
[WhiteElo "2125"]
[BlackElo "2070"]
[Annotator "NA"]
[PlyCount "49"]
[EventDate "2019.04.27"]
[EventType "swiss"]
[EventCountry "CZE"]
[SourceTitle "playchess.com"]
[Source "ChessBase"]
[SourceQuality "1"]
[TimeControl "40/5400+30:1800+30"]

1. e4 {[%emt 0:00:00]} e6 {[%emt 0:00:00]} 2. d4 {[%emt 0:00:00]} d5 {[%emt 0:00:00]} 3. Nc3 {[%emt 0:00:00]} Nf6 {[%emt 0:01:49]} 4. Bg5 {[%emt 0:00:13]} Be7 {[%emt 0:00:02]} 5. e5 {[%emt 0:00:10]} Nfd7 {[%emt 0:00:02]} 6. h4 {[%emt 0:00:08]} h6 {[%emt 0:00:48]} 7. Bxe7 {[%emt 0:00:22]} Qxe7 {[%emt 0:00:01]} 8. f4 {[%emt 0:00:46]} a6 {[%emt 0:01:28]} 9. Qd2 {[%emt 0:01:18]} c5 {[%emt 0:00:06]} 10. dxc5 {[%emt 0:00:28]} Nxc5 {[%emt 0:01:49]} 11. Nf3 {[%emt 0:00:21]} Nc6 {[%emt 0:00:09]} 12. O-O-O {[%emt 0:00:35]} b5 {[%emt 0:05:44]} 13. Bd3 {[%emt 0:01:35]} Bb7 {[%emt 0:00:17]} 14. Kb1 {[%emt 0:01:53]} O-O-O {[%emt 0:00:08]} 15. Rhe1 {[%emt 0:04:01]} b4 {[%emt 0:14:33]} 16. Ne2 {[%emt 0:01:19]} Ne4 {[%emt 0:00:12]} 17. Qe3 {[%emt 0:07:31]} f5 {[%emt 0:42:57]} 18. exf6 {[%emt 0:03:07]} gxf6 {[%emt 0:03:15]} 19. Ned4 {[%emt 0:03:05]} Na5 {[%emt 0:05:36]} 20. Nd2 {[%emt 0:07:51]} f5 {[%emt 0:01:38]} 21. g4 {[%emt 0:00:36]} fxg4 {[%emt 0:05:57]} 22. Nxe4 {[%emt 0:00:57]} dxe4 {[%emt 0:00:02]} 23. Bxe4 {[%emt 0:00:27]} Qd6 {[%emt 0:08:47]} 24. a3 {[%emt 0:02:58]} Kb8 {[%emt 0:02:46]} 25. Nc6+ {[%emt 0:01:18] Rde8} 1-0

[Event "Ostravsky Konik-A 2019"]
[Site "Ostrava"]
[Date "2019.05.03"]
[Round "7.7"]
[White "Nehyba, Martin"]
[Black "Kucera, Tomas"]
[Result "1/2-1/2"]
[ECO "B22"]
[WhiteElo "2113"]
[BlackElo "1961"]
[Annotator "NA"]
[PlyCount "98"]
[EventDate "2019.04.27"]
[EventType "swiss"]
[EventCountry "CZE"]
[SourceTitle "playchess.com"]
[Source "ChessBase"]
[SourceQuality "1"]
[TimeControl "40/5400+30:1800+30"]

1. e4 {[%emt 0:00:00]} c5 {[%emt 0:00:00]} 2. c3 {[%emt 0:00:01]} d5 {[%emt 0:00:00]} 3. exd5 {[%emt 0:00:08]} Qxd5 {[%emt 0:00:05]} 4. d4 {[%emt 0:00:03]} Nf6 {[%emt 0:00:24]} 5. Nf3 {[%emt 0:00:06]} Bg4 {[%emt 0:00:10]} 6. dxc5 {[%emt 0:00:05]} Qxc5 {[%emt 0:01:21]} 7. h3 {[%emt 0:00:06]} Bh5 {[%emt 0:06:07]} 8. Be3 {[%emt 0:00:06]} Qc7 {[%emt 0:00:30]} 9. Na3 {[%emt 0:00:06]} a6 {[%emt 0:00:25]} 10. Qa4+ {[%emt 0:00:06]} Nbd7 {[%emt 0:00:43]} 11. Rd1 {[%emt 0:25:30]} Bxf3 {[%emt 0:08:23]} 12. gxf3 {[%emt 0:00:35]} O-O-O {[%emt 0:00:18]} 13. Bxa6 {[%emt 0:09:09]} bxa6 {[%emt 0:00:09]} 14. Rd4 {[%emt 0:00:05]} Nc5 {[%emt 0:08:08]} 15. Rxd8+ {[%emt 0:09:34]} Kxd8 {[%emt 0:00:13]} 16. Bxc5 {[%emt 0:00:04]} Qxc5 {[%emt 0:00:42]} 17. O-O {[%emt 0:00:06]} e6 {[%emt 0:07:13]} 18. Rd1+ {[%emt 0:14:29]} Bd6 {[%emt 0:03:12]} 19. Nc4 {[%emt 0:00:09]} Ne8 {[%emt 0:05:11]} 20. Nxd6 {[%emt 0:08:13]} Nxd6 {[%emt 0:00:13]} 21. b4 {[%emt 0:00:09]} Qg5+ {[%emt 0:03:05]} 22. Kh1 {[%emt 0:06:07]} Ke7 {[%emt 0:02:40]} 23. Qxa6 {[%emt 0:00:31]} Qf4 {[%emt 0:04:41]} 24. Kg2 {[%emt 0:10:20]} Nf5 {[%emt 0:06:32]} 25. Qb7+ {[%emt 0:04:58]} Kf6 {[%emt 0:00:22]} 26. Qe4 {[%emt 0:00:09]} g5 {[%emt 0:12:55]} 27. c4 {[%emt 0:02:44]} Nh4+ {[%emt 0:09:45]} 28. Kf1 {[%emt 0:00:02]} Nxf3 {[%emt 0:00:13]} 29. Qxf4+ {[%emt 0:00:18]} gxf4 {[%emt 0:00:08]} 30. c5 {[%emt 0:02:04]} Ra8 {[%emt 0:05:31]} 31. c6 {[%emt 0:01:19]} Rxa2 {[%emt 0:02:59]} 32. Rc1 {[%emt 0:02:49]} Ra8 {[%emt 0:06:41]} 33. b5 {[%emt 0:01:32]} Nd2+ {[%emt 0:01:38]} 34. Ke2 {[%emt 0:00:50]} Nb3 {[%emt 0:00:53]} 35. b6 {[%emt 0:01:49]} Nd4+ {[%emt 0:03:04]} 36. Kd3 {[%emt 0:00:20]} Nxc6 {[%emt 0:00:05]} 37. Rxc6 {[%emt 0:00:01]} Rb8 {[%emt 0:02:59]} 38. Ke4 {[%emt 0:00:06]} Ke7 {[%emt 0:00:37]} 39. Rc7+ {[%emt 0:01:44]} Kd6 {[%emt 0:00:30]} 40. Rxf7 {[%emt 0:00:07]} Rxb6 {[%emt 0:00:08]} 41. Kxf4 {[%emt 0:30:05]} h5 {[%emt 0:03:46]} 42. Kg5 {[%emt 0:00:00]} Rb5+ {[%emt 0:00:34]} 43. Kh4 {[%emt 0:00:00]} Ra5 {[%emt 0:04:23]} 44. f3 {[%emt 0:00:00]} Rb5 {[%emt 0:01:03]} 45. Rg7 {[%emt 0:00:00]} Rf5 {[%emt 0:01:08]} 46. Kg3 {[%emt 0:00:00]} e5 {[%emt 0:01:27]} 47. h4 {[%emt 0:00:00]} Ke6 {[%emt 0:00:23]} 48. Rg6+ {[%emt 0:00:00]} Kf7 {[%emt 0:01:56]} 49. Rg5 {[%emt 0:00:00]} Kf6 {[%emt 0:00:33] Kf4 e4+ Kxe4 Ke5+} 1/2-1/2

[Event "Ostravsky Konik-A 2019"]
[Site "Ostrava"]
[Date "2019.05.03"]
[Round "7.8"]
[White "Potomak, Vladimir"]
[Black "Nytra, Ondrej"]
[Result "0-1"]
[ECO "A22"]
[WhiteElo "2102"]
[BlackElo "1896"]
[Annotator "NA"]
[PlyCount "108"]
[EventDate "2019.04.27"]
[EventType "swiss"]
[EventCountry "CZE"]
[SourceTitle "playchess.com"]
[Source "ChessBase"]
[SourceQuality "1"]
[TimeControl "40/5400+30:1800+30"]

1. c4 {[%emt 0:00:00]} e5 {[%emt 0:00:00]} 2. Nc3 {[%emt 0:00:00]} Nf6 {[%emt 0:00:00]} 3. g3 {[%emt 0:00:00]} d5 {[%emt 0:00:00]} 4. cxd5 {[%emt 0:00:00]} Nxd5 {[%emt 0:00:00]} 5. Bg2 {[%emt 0:00:00]} Nb6 {[%emt 0:00:00]} 6. Nf3 {[%emt 0:00:08]} Nc6 {[%emt 0:00:00]} 7. O-O {[%emt 0:00:08]} Be7 {[%emt 0:00:00]} 8. a3 {[%emt 0:00:14]} O-O {[%emt 0:00:00]} 9. b4 {[%emt 0:00:05]} Be6 {[%emt 0:00:01]} 10. Rb1 {[%emt 0:00:10]} f6 {[%emt 0:00:03]} 11. Ne4 {[%emt 0:00:15]} Rb8 {[%emt 0:00:55]} 12. Nc5 {[%emt 0:02:32]} Bf7 {[%emt 0:00:07]} 13. d3 {[%emt 0:01:17]} Qe8 {[%emt 0:05:50]} 14. Bb2 {[%emt 0:02:11]} a5 {[%emt 0:03:16]} 15. bxa5 {[%emt 0:16:09]} Bxc5 {[%emt 0:01:55]} 16. axb6 {[%emt 0:00:06]} Bxb6 {[%emt 0:00:02]} 17. Nd2 {[%emt 0:02:57]} Ba2 {[%emt 0:09:33]} 18. Rc1 {[%emt 0:03:21]} Qf7 {[%emt 0:11:37]} 19. Nc4 {[%emt 0:01:20]} Rfd8 {[%emt 0:00:49]} 20. Nxb6 {[%emt 0:03:12]} cxb6 {[%emt 0:00:16]} 21. Qa4 {[%emt 0:03:38]} Rd6 {[%emt 0:05:38]} 22. Rfe1 {[%emt 0:10:50]} Be6 {[%emt 0:06:20]} 23. Bc3 {[%emt 0:04:52]} Bd5 {[%emt 0:16:42]} 24. Rb1 {[%emt 0:03:56]} Bxg2 {[%emt 0:04:21]} 25. Kxg2 {[%emt 0:00:05]} f5 {[%emt 0:01:11]} 26. Rxb6 {[%emt 0:02:28]} Kh8 {[%emt 0:09:04]} 27. Qb3 {[%emt 0:02:46]} Qh5 {[%emt 0:05:27]} 28. Rxb7 {[%emt 0:04:17]} Rf8 {[%emt 0:00:27]} 29. f3 {[%emt 0:15:42]} Rh6 {[%emt 0:04:04]} 30. Rh1 {[%emt 0:02:59]} Qh3+ {[%emt 0:01:52]} 31. Kf2 {[%emt 0:00:10]} f4 {[%emt 0:01:31]} 32. g4 {[%emt 0:03:17]} Qh4+ {[%emt 0:00:04]} 33. Kg1 {[%emt 0:04:31]} Rg6 {[%emt 0:05:43]} 34. h3 {[%emt 0:04:59]} h5 {[%emt 0:04:00]} 35. Qd1 {[%emt 0:01:42]} Rc8 {[%emt 0:03:23]} 36. Be1 {[%emt 0:00:22]} Qg5 {[%emt 0:00:38]} 37. Bf2 {[%emt 0:00:10]} Nd4 {[%emt 0:00:24]} 38. Kg2 {[%emt 0:01:18]} Rgc6 {[%emt 0:00:24]} 39. Rb2 {[%emt 0:02:19]} Ra6 {[%emt 0:01:42]} 40. a4 {[%emt 0:00:40]} Rd8 {[%emt 0:02:03]} 41. Rb4 {[%emt 0:30:34]} Qe7 {[%emt 0:30:23]} 42. Rc4 {[%emt 0:04:32]} Qb7 {[%emt 0:00:00]} 43. Qd2 {[%emt 0:00:00]} Qf7 {[%emt 0:00:00]} 44. Rb4 {[%emt 0:00:00]} Rc6 {[%emt 0:00:00]} 45. Rd1 {[%emt 0:00:00]} Kh7 {[%emt 0:00:00]} 46. Rb2 {[%emt 0:00:00]} Rdc8 {[%emt 0:00:00]} 47. Qb4 {[%emt 0:00:00]} Qf6 {[%emt 0:00:00]} 48. Rdd2 {[%emt 0:00:00]} Rc1 {[%emt 0:00:00]} 49. Qb7 {[%emt 0:00:00]} R8c6 {[%emt 0:00:00]} 50. a5 {[%emt 0:00:00]} hxg4 {[%emt 0:00:00]} 51. Qd7 {[%emt 0:00:00]} Re6 {[%emt 0:00:00]} 52. Bxd4 {[%emt 0:02:11]} gxh3+ {[%emt 0:00:00]} 53. Kh2 {[%emt 0:00:09]} Qg6 {[%emt 0:00:21]} 54. e4 {[%emt 0:00:00]} Qg3# {[%emt 0:00:07] Qe7} 0-1